bitfinex/quotes_SOLUSD_20240811
["timestamp","ask_amount","ask_price","bid_price","bid_amount"]
[1723397096754,1.68055991,148.79,148.75,10.62]
[1723397097253,15.807,148.8,148.74,10.62]
[1723397101253,15.807,148.8,148.75,10.62]
[1723397104544,15.807,148.8,148.76,10.62]
[1723397105763,15.807,148.8,148.79,10.62]
[1723397106440,6.1612,148.83,148.79,10.62]
[1723397106641,6.1612,148.83,148.81,10.62]
[1723397108660,6.1612,148.83,148.8,10.62]
[1723397110742,6.1612,148.83,148.79,10.62]
[1723397111552,4.704,148.81,148.77,10.62]
[1723397111865,4.7037,148.82,148.77,10.62]
[1723397112055,10.8647,148.83,148.78,10.62]
[1723397112253,4.7037,148.82,148.77,10.62]
[1723397112663,4.704,148.81,148.76,10.62]
[1723397114162,6.38460386,148.8,148.73,0.12549]
[1723397114366,1.68044617,148.79,148.75,10.62]
[1723397115262,1.68041906,148.8,148.75,10.62]
[1723397115447,1.68041852,148.79,148.75,10.62]
[1723397116448,1.68041901,148.8,148.75,10.62]
[1723397116771,1.68041955,148.79,148.75,10.62]
[1723397117068,1.68041955,148.81,148.75,10.62]
[1723397119243,15.3734,148.8,148.75,10.62]
[1723397119555,1.68058514,148.79,148.74,10.62]
[1723397121667,7.99798099,148.78,148.71,7.01843017]
[1723397121963,7.99798099,148.78,148.72,10.62]
[1723397122865,6.3174,148.78,148.73,10.62]
[1723397123065,6.3174,148.78,148.74,10.62]
[1723397124058,6.3174,148.78,148.7,1.52018061]
[1723397124059,6.3174,148.78,148.75,10.62]
[1723397129462,6.3174,148.78,148.73,10.62]
[1723397129768,1.68064592,148.77,148.69,1.16837752]
[1723397129968,15.505,148.75,148.7,10.62]
[1723397130161,1.68097067,148.74,148.7,10.62]
[1723397130961,17.18594865,148.75,148.7,10.62]
[1723397132185,1.68095983,148.74,148.7,10.62]
[1723397132368,1.68096004,148.73,148.66,18.71816155]
[1723397132565,1.68096004,148.73,148.68,10.62]
[1723397132769,1.68096004,148.73,148.69,20.0]
[1723397133486,1.68120604,148.74,148.69,20.0]
[1723397133682,1.68120645,148.73,148.69,20.0]
[1723397134686,1.68121288,148.74,148.69,10.62]
[1723397134990,15.505,148.75,148.7,10.62]
[1723397135590,15.505,148.75,148.72,10.62]
[1723397136262,15.505,148.75,148.71,10.62]
[1723397136781,15.505,148.75,148.72,10.62]
[1723397137464,6.38714501,148.74,148.67,0.25098]
[1723397137664,1.68123941,148.73,148.68,10.62]
[1723397137885,26.125,148.75,148.68,10.62]
[1723397138187,15.505,148.75,148.69,10.62]
[1723397139076,1.68117955,148.74,148.68,10.62]
[1723397139382,1.68125315,148.73,148.68,10.62]
[1723397139686,8.02405315,148.73,148.67,10.62]
[1723397139887,12.73055315,148.73,148.66,10.62]
[1723397140076,20.2118,148.72,148.65,10.62]
[1723397140276,1.68157588,148.71,148.65,10.62]
[1723397140490,1.68155472,148.7,148.65,10.62]
[1723397140866,15.505,148.72,148.65,10.62]
[1723397141073,30.8318,148.72,148.62,7.02141457]
[1723397141269,10.62,148.7,148.63,10.62]
[1723397141478,10.62,148.7,148.59,10.53277187]
[1723397141682,12.30159588,148.71,148.63,10.62]
[1723397141987,45.0,148.7,148.63,10.62]
[1723397142883,45.0,148.7,148.64,20.0]
[1723397143675,45.0,148.7,148.64,30.62]
[1723397144279,45.0,148.7,148.64,10.62]
[1723397144488,46.68173069,148.7,148.64,10.62]
[1723397147098,45.0,148.7,148.64,10.62]
[1723397147499,45.0,148.7,148.65,10.62]
[1723397147675,45.0,148.71,148.65,10.62]
[1723397149300,55.62,148.71,148.65,10.62]
[1723397149505,15.505,148.72,148.67,10.62]
[1723397149679,15.505,148.72,148.68,10.62]
[1723397151782,15.505,148.72,148.63,0.25098]
[1723397151993,15.505,148.72,148.68,10.62]
[1723397152305,15.505,148.72,148.64,0.25098]
[1723397152306,15.505,148.72,148.67,10.62]
[1723397152594,15.505,148.72,148.68,10.62]
[1723397155896,17.18626203,148.72,148.67,10.62]
[1723397159383,15.505,148.72,148.67,10.62]
[1723397160585,15.505,148.72,148.69,10.62]
[1723397161097,15.505,148.72,148.68,10.62]
[1723397161301,15.505,148.72,148.67,10.62]
[1723397161810,15.505,148.72,148.69,10.62]
[1723397163786,15.505,148.72,148.68,10.62]
[1723397164382,15.505,148.72,148.63,9.6806032]
[1723397164588,4.7072,148.71,148.64,30.62]
[1723397164790,1.68158984,148.7,148.64,30.62]
[1723397165488,30.8319,148.72,148.64,30.62]
[1723397165803,32.51341822,148.72,148.64,30.62]
[1723397166808,55.62,148.71,148.64,20.0]
[1723397166993,12.30169925,148.7,148.64,20.0]
[1723397167196,12.30169925,148.7,148.63,10.62]
[1723397167711,10.62,148.68,148.6,7.02193047]
[1723397167911,10.62,148.68,148.59,11.70215124]
[1723397167912,1.68198109,148.67,148.61,10.62]
[1723397168704,10.62,148.68,148.61,10.62]
[1723397169004,10.62,148.68,148.62,10.62]
[1723397169206,1.6819679,148.67,148.62,10.62]
[1723397169708,1.6819679,148.67,148.61,10.62]
[1723397169887,1.68201366,148.66,148.6,10.62]
[1723397170292,4.7084,148.67,148.6,10.62]
[1723397170497,20.7947,148.66,148.58,7.02404366]
[1723397170803,1.68213593,148.65,148.59,10.62]
[1723397171308,16.7517,148.64,148.57,11.4223994]
[1723397171602,17.76827378,148.63,148.57,11.4223994]
[1723397173199,26.7059,148.63,148.57,0.8023994]
[1723397173425,16.0859,148.61,148.57,0.8023994]
[1723397173801,16.0859,148.61,148.6,10.62]
[1723397174110,6.1317,148.64,148.6,10.62]
[1723397174286,10.8412,148.64,148.57,0.8023994]
[1723397174493,6.1317,148.64,148.58,10.62]
[1723397175297,6.1317,148.64,148.6,10.62]
[1723397175487,6.1317,148.64,148.61,10.62]
[1723397175686,6.1317,148.64,148.58,0.25098]
[1723397175898,6.1317,148.64,148.62,10.62]
[1723397176511,6.1317,148.64,148.61,10.62]
[1723397178117,10.62,148.62,148.54,0.07808191]
[1723397178411,10.62,148.62,148.54,10.69808191]
[1723397178591,4.7099,148.62,148.56,10.62]
[1723397179391,20.7955,148.63,148.57,10.62]
[1723397179717,20.7955,148.63,148.58,10.62]
[1723397180090,4.7103,148.61,148.56,10.62]
[1723397180291,4.7112,148.58,148.55,10.62]
[1723397180492,4.711,148.59,148.54,0.07808191]
[1723397180797,1.68274164,148.58,148.54,0.07808191]
[1723397181194,6.1317,148.57,148.54,0.07808191]
[1723397181398,16.0859,148.56,148.54,0.07808191]
[1723397182425,16.0859,148.56,148.54,10.69808191]
[1723397182798,16.0859,148.56,148.54,0.07808191]
[1723397186425,16.0859,148.56,148.54,10.69808191]
[1723397187808,16.0859,148.56,148.54,0.07808191]
[1723397188514,17.76903419,148.56,148.54,0.07808191]
[1723397190823,22.48113419,148.56,148.54,0.07808191]
[1723397191015,20.798,148.56,148.54,0.07808191]
[1723397191327,16.0859,148.56,148.54,0.07808191]
[1723397191709,22.48115864,148.56,148.54,0.07808191]
[1723397192024,49.7122,148.55,148.54,0.07808191]
[1723397192206,45.0,148.55,148.54,0.07808191]
[1723397192605,55.62,148.55,148.5,4.7137]
[1723397192812,4.7128,148.53,148.48,4.7141]
[1723397193011,4.7128,148.53,148.48,15.3341]
[1723397193226,4.7128,148.53,148.45,13.27506582]
[1723397193227,45.0,148.55,148.5,4.7136]
[1723397193437,4.7125,148.54,148.49,15.334]
[1723397193634,45.0,148.53,148.49,15.334]
[1723397193840,45.0,148.53,148.49,4.714]
[1723397194011,49.7129,148.53,148.49,4.714]
[1723397195516,49.7129,148.53,148.48,10.62]
[1723397195517,4.7132,148.52,148.45,13.27506582]
[1723397195716,1.68380716,148.51,148.48,4.7144]
[1723397196216,15.8145,148.5,148.48,4.7144]
[1723397196615,15.8145,148.5,148.49,4.7141]
[1723397196808,15.8145,148.54,148.49,10.62]
[1723397197011,15.8145,148.54,148.43,1.02533325]
[1723397197012,15.8145,148.54,148.52,4.713]
[1723397197214,15.8145,148.54,148.53,4.7128]
[1723397197821,15.8145,148.54,148.51,10.62]
[1723397197822,15.8145,148.54,148.52,4.713]
[1723397200809,15.8145,148.58,148.56,4.7116]
[1723397201015,15.8145,148.58,148.56,15.3316]
[1723397202330,15.8145,148.58,148.56,4.7116]
[1723397202629,15.8145,148.58,148.56,15.3316]
[1723397203736,15.8145,148.58,148.57,10.62]
[1723397203938,15.8145,148.58,148.56,21.33]
[1723397204952,15.8145,148.58,148.54,21.33]
[1723397205114,1.68286488,148.57,148.52,21.33]
[1723397205313,6.39446488,148.57,148.52,21.33]
[1723397205638,15.8145,148.58,148.54,4.7123]
[1723397206017,15.8145,148.58,148.55,4.7121]
[1723397207210,15.8145,148.58,148.52,21.33]
[1723397207416,1.68295773,148.57,148.52,21.33]
[1723397208038,4.7116,148.57,148.52,6.343453]
[1723397208536,1.33198083,148.57,148.52,6.343453]
[1723397209541,20.5258,148.58,148.52,6.343453]
[1723397210039,20.5258,148.58,148.54,4.7125]
[1723397210618,1.68312473,148.57,148.54,4.7125]
[1723397211328,20.5258,148.58,148.54,4.7125]
[1723397212719,1.68310783,148.57,148.54,4.7125]
[1723397213334,1.68310783,148.57,148.5,21.33]
[1723397213929,4.712,148.56,148.5,21.33]
[1723397214121,1.68328996,148.55,148.5,21.33]
[1723397214321,1.68330438,148.54,148.5,21.33]
[1723397214943,1.68330438,148.54,148.48,21.33]
[1723397215458,1.68329488,148.55,148.51,4.7134]
[1723397215636,1.68335761,148.54,148.51,4.7134]
[1723397217453,6.39585761,148.54,148.5,4.7137]
[1723397217749,1.68350622,148.53,148.5,4.7137]
[1723397218521,16.85620622,148.53,148.51,4.7134]
[1723397218724,15.1727,148.53,148.47,0.25098]
[1723397218938,15.1727,148.53,148.51,4.7133]
[1723397219535,15.1727,148.53,148.5,4.7137]
[1723397219739,1.68345779,148.52,148.5,4.7137]
[1723397219948,15.1727,148.53,148.51,4.7134]
[1723397220448,15.1727,148.53,148.52,4.7131]
[1723397221021,15.1727,148.53,148.51,4.7133]
[1723397221225,1.68336665,148.52,148.49,4.7138]
[1723397221427,1.68367408,148.51,148.49,4.7138]
[1723397221852,15.1727,148.53,148.5,4.7138]
[1723397222232,15.1727,148.53,148.51,4.7134]
[1723397223944,16.8561036,148.53,148.45,20.12549]
[1723397224137,21.5691036,148.53,148.49,4.714]
[1723397224732,4.7133,148.52,148.48,4.7142]
[1723397225050,1.68368178,148.51,148.48,4.7142]
[1723397226450,1.68368161,148.52,148.48,4.7142]
[1723397226648,1.68368181,148.51,148.48,4.7142]
[1723397227656,6.39688161,148.52,148.48,4.7142]
[1723397228346,1.68368154,148.51,148.48,4.7142]
[1723397229056,4.7132,148.52,148.48,4.7142]
[1723397229755,1.6836812,148.51,148.48,4.7142]
[1723397230245,19.8856,148.53,148.49,4.714]
[1723397230446,1.68361396,148.52,148.48,4.7143]
[1723397230751,15.1727,148.53,148.49,4.714]
[1723397230962,19.8855,148.53,148.49,4.714]
[1723397231332,1.68359026,148.52,148.49,4.714]
[1723397231530,19.8855,148.53,148.47,10.68]
[1723397231732,15.1727,148.53,148.49,4.7138]
[1723397231959,1.68353084,148.52,148.48,4.7143]
[1723397232145,19.8855,148.53,148.48,4.7143]
[1723397232539,15.1727,148.53,148.47,4.7144]
[1723397232738,15.1727,148.53,148.47,15.3944]
[1723397232938,19.8858,148.53,148.48,4.7144]
[1723397233246,4.7132,148.52,148.48,4.7144]
[1723397233559,21.56915577,148.53,148.48,4.7144]
[1723397233732,21.56915577,148.53,148.49,4.7141]
[1723397233937,15.1727,148.53,148.51,4.7133]
[1723397234149,15.1727,148.53,148.51,15.3933]
[1723397234943,15.1727,148.53,148.5,15.3937]
[1723397238750,15.1727,148.53,148.5,4.7137]
[1723397238950,15.1727,148.53,148.51,10.68]
[1723397239161,15.1727,148.53,148.49,10.68]
[1723397241272,15.1727,148.53,148.49,4.7138]
[1723397241968,15.1727,148.53,148.5,4.7137]
[1723397243580,1.68354966,148.52,148.46,10.68]
[1723397243882,1.68359164,148.51,148.45,10.68]
[1723397244173,1.68359164,148.51,148.48,4.7142]
[1723397244372,1.68359164,148.51,148.46,10.68]
[1723397244973,1.68365805,148.52,148.49,4.714]
[1723397245171,1.68364704,148.51,148.48,4.7144]
[1723397245372,1.68364704,148.51,148.49,4.714]
[1723397245678,1.68364704,148.51,148.48,4.7143]
[1723397245872,1.68364704,148.51,148.46,10.68]
[1723397245873,1.68364704,148.51,148.49,4.714]
[1723397246063,19.8856,148.53,148.49,4.714]
[1723397246481,15.1727,148.53,148.5,4.7137]
[1723397246864,1.68349964,148.52,148.5,4.7137]
[1723397247675,6.39670416,148.52,148.48,4.7142]
[1723397247873,4.7132,148.52,148.48,4.7142]
[1723397248072,15.1727,148.53,148.49,4.714]
[1723397248271,19.8855,148.53,148.49,4.714]
[1723397249951,1.68354573,148.52,148.49,4.714]
[1723397250155,19.8855,148.53,148.49,4.714]
[1723397250459,1.68361162,148.52,148.47,10.68]
[1723397250673,19.8855,148.53,148.49,4.7139]
[1723397251178,1.68361184,148.52,148.49,4.7139]
[1723397251877,1.68361514,148.52,148.49,4.7139]
[1723397252572,19.8855,148.53,148.49,4.7139]
[1723397252772,15.1727,148.53,148.5,4.7137]
[1723397253079,15.1727,148.53,148.51,4.7134]
[1723397255068,15.1727,148.53,148.5,4.7137]
[1723397255272,16.85606967,148.53,148.5,4.7137]
[1723397256481,15.1727,148.53,148.5,4.7137]
[1723397257181,15.1727,148.53,148.49,10.68]
[1723397257182,15.1727,148.53,148.51,4.7134]
[1723397257884,15.1727,148.53,148.52,4.7131]
[1723397258491,15.1727,148.53,148.51,4.7133]
[1723397258988,15.1727,148.53,148.5,4.7137]
[1723397259367,15.1727,148.53,148.43,27.0113662]
[1723397259368,1.68341432,148.52,148.44,0.12549]
[1723397259569,1.68357754,148.51,148.44,45.50196]
[1723397259778,1.68357754,148.51,148.48,4.7143]
[1723397259981,1.68357754,148.51,148.49,4.7141]
[1723397260200,1.68357754,148.51,148.48,4.7143]
[1723397260493,49.7132,148.52,148.48,4.7143]
[1723397260888,15.1727,148.53,148.49,4.714]
[1723397261282,15.1727,148.53,148.5,4.7136]
[1723397261581,1.6835439,148.52,148.49,4.714]
[1723397261783,1.68358555,148.51,148.49,4.714]
[1723397262490,1.68358535,148.52,148.49,4.714]
[1723397262901,15.1727,148.53,148.5,4.7136]
[1723397263103,15.1727,148.53,148.5,10.68]
[1723397263300,15.1727,148.53,148.51,4.7131]
[1723397267015,15.1727,148.53,148.5,4.7137]
[1723397267184,16.85604275,148.53,148.5,4.7137]
[1723397267383,15.1727,148.53,148.5,4.7137]
[1723397267599,15.1727,148.53,148.51,4.7133]
[1723397271883,15.1727,148.53,148.5,4.7136]
[1723397272084,1.68335901,148.52,148.48,10.68]
[1723397272284,1.68356418,148.51,148.48,10.68]
[1723397272585,1.68359826,148.52,148.48,10.68]
[1723397272888,1.68357573,148.51,148.48,10.68]
[1723397273396,19.8856,148.53,148.48,10.68]
[1723397273801,19.8856,148.53,148.49,4.7139]
[1723397274892,15.1727,148.53,148.5,4.7137]
[1723397278206,15.1727,148.53,148.51,4.7133]
[1723397280306,15.7252,148.57,148.52,10.68]
[1723397280522,15.7252,148.57,148.49,0.12549]
[1723397280523,4.713,148.53,148.49,4.714]
[1723397280816,1.68353857,148.52,148.48,4.7143]
[1723397281107,1.68353857,148.52,148.47,4.7146]
[1723397281108,20.4383,148.52,148.47,4.7146]
[1723397281503,20.4383,148.52,148.46,4.715]
[1723397281504,12.36378753,148.51,148.46,4.715]
[1723397281699,12.36378753,148.51,148.43,4.7158]
[1723397281700,4.7144,148.48,148.43,4.7158]
[1723397282012,1.68421087,148.47,148.43,4.7158]
[1723397282389,1.68421087,148.47,148.44,4.7156]
[1723397282591,1.68420248,148.46,148.42,0.8023994]
[1723397282908,1.68420248,148.46,148.42,0.5180994]
[1723397283705,1.68428949,148.45,148.42,0.5180994]
[1723397284208,4.7152,148.46,148.42,0.5180994]
[1723397284420,4.7155,148.45,148.42,0.5180994]
[1723397284717,15.3955,148.45,148.42,0.5180994]
[1723397284893,20.4403,148.46,148.42,0.5180994]
[1723397285094,45.0,148.45,148.42,0.5180994]
[1723397285305,15.7252,148.46,148.42,0.5180994]
[1723397285812,31.1202,148.46,148.42,0.5180994]
[1723397286187,26.4052,148.46,148.42,0.5180994]
[1723397287216,15.7252,148.46,148.42,0.5180994]
[1723397287605,20.4403,148.46,148.42,0.5180994]
[1723397287794,1.68446004,148.45,148.42,0.5180994]
[1723397287990,15.7252,148.46,148.42,0.5180994]
[1723397288921,15.7252,148.46,148.42,11.1980994]
[1723397289713,15.7252,148.46,148.43,10.68]
[1723397291405,15.7252,148.46,148.42,0.5180994]
[1723397291605,15.7252,148.46,148.42,11.1980994]
[1723397292798,1.68417654,148.45,148.42,0.5180994]
[1723397293415,31.1203,148.46,148.42,0.5180994]
[1723397293613,20.4403,148.46,148.42,0.5180994]
[1723397294117,15.7252,148.46,148.42,0.5180994]
[1723397296113,6.1798,148.49,148.43,10.68]
[1723397296321,6.1798,148.49,148.44,10.68]
[1723397296832,10.894,148.49,148.44,10.68]
[1723397297198,10.894,148.49,148.43,10.68]
[1723397297399,21.574,148.49,148.42,0.5180994]
[1723397297604,10.68,148.47,148.42,0.5180994]
[1723397297912,1.68433419,148.46,148.42,0.5180994]
[1723397298113,1.68433438,148.45,148.42,0.5180994]
[1723397299239,1.68433459,148.46,148.42,0.5180994]
[1723397299432,15.3949,148.47,148.42,0.5180994]
[1723397299728,1.68433439,148.46,148.42,0.5180994]
[1723397299911,15.2402,148.45,148.42,0.5180994]
[1723397301625,1.68447218,148.44,148.42,0.5180994]
[1723397302428,19.9557,148.45,148.42,0.5180994]
[1723397302628,30.6357,148.45,148.42,0.5180994]
[1723397303121,45.0,148.44,148.42,0.5180994]
[1723397303339,62.08039454,148.44,148.42,0.5180994]
[1723397303711,30.6356,148.45,148.42,0.5180994]
[1723397303927,1.68466029,148.44,148.42,0.5180994]
[1723397304133,51.40036029,148.44,148.42,0.5180994]
[1723397306326,0.12549,148.39,148.33,7.01156393]
[1723397306634,10.68,148.38,148.32,10.68]
[1723397306935,21.2501,148.4,148.35,10.68]
[1723397307236,21.2501,148.4,148.36,10.68]
[1723397307732,15.2402,148.4,148.36,10.68]
[1723397308333,1.68493001,148.39,148.35,10.68]
[1723397308832,15.2402,148.4,148.35,10.68]
[1723397309544,15.2402,148.4,148.36,10.68]
[1723397311047,4.7161,148.43,148.36,10.68]
[1723397311211,6.0099,148.44,148.39,10.68]
[1723397311727,1.68466022,148.43,148.39,10.68]
[1723397312119,1.68465938,148.42,148.39,10.68]
[1723397312345,6.40076316,148.43,148.32,0.12549]
[1723397312554,45.0,148.42,148.37,10.68]
[1723397312742,4.7163,148.42,148.33,42.72]
[1723397312945,4.7163,148.42,148.36,10.68]
[1723397313345,1.68502485,148.41,148.36,10.68]
[1723397313548,1.68502485,148.41,148.35,10.68]
[1723397314548,1.68502485,148.41,148.36,10.68]
[1723397315736,15.725,148.4,148.31,16.5644]
[1723397315935,15.725,148.4,148.35,10.68]
[1723397318059,15.725,148.4,148.36,10.68]
[1723397318370,15.725,148.4,148.37,10.68]
[1723397319147,1.68491405,148.42,148.37,10.68]
[1723397319356,4.716,148.43,148.38,10.68]
[1723397319553,4.716,148.43,148.37,10.68]
[1723397319554,6.40088624,148.43,148.37,10.68]
[1723397319746,1.68488624,148.42,148.36,10.68]
[1723397320147,46.68488624,148.42,148.35,10.68]
[1723397320354,45.0,148.42,148.35,10.68]
[1723397320561,49.7164,148.42,148.35,10.68]
[1723397320762,49.7164,148.42,148.36,10.68]
[1723397321647,49.7164,148.42,148.33,42.72]
[1723397321872,49.7164,148.42,148.32,0.25098]
[1723397322173,49.7164,148.42,148.36,10.68]
[1723397322174,45.0,148.42,148.36,10.68]
[1723397325057,45.0,148.42,148.37,10.68]
[1723397325355,21.4057,148.44,148.37,10.68]
[1723397325550,45.0,148.43,148.37,10.68]
[1723397326243,10.7257,148.44,148.37,10.68]
[1723397326450,10.7257,148.44,148.38,10.68]
[1723397326644,10.7257,148.44,148.37,10.68]
[1723397327072,6.4009331,148.43,148.33,0.25098]
[1723397327368,6.4009331,148.43,148.36,10.68]
[1723397327573,17.0809331,148.43,148.36,10.68]
[1723397329683,6.4009331,148.43,148.36,10.68]
[1723397331485,4.7164,148.42,148.34,0.12549]
[1723397331689,1.6850258,148.41,148.36,10.68]
[1723397332992,45.0,148.42,148.36,10.68]
[1723397333297,4.7161,148.43,148.36,10.68]
[1723397333497,1.68487109,148.42,148.36,10.68]
[1723397334173,6.40117109,148.42,148.36,10.68]
[1723397334374,6.40117109,148.42,148.32,20.0]
[1723397334375,20.895,148.41,148.32,20.0]
[1723397334576,16.1783,148.41,148.34,10.68]
[1723397334999,1.68495932,148.4,148.36,10.68]
[1723397335290,16.1783,148.41,148.36,10.68]
[1723397335998,1.68486904,148.4,148.36,10.68]
[1723397336183,16.1783,148.41,148.36,10.68]
[1723397337095,1.68482505,148.4,148.36,10.68]
[1723397337704,1.68491157,148.39,148.36,10.68]
[1723397338806,1.68502742,148.4,148.36,10.68]
[1723397339011,1.68503301,148.39,148.36,10.68]
[1723397339186,1.68503301,148.39,148.34,10.68]
[1723397339376,16.1783,148.41,148.34,10.68]
[1723397340184,1.68508088,148.4,148.34,10.68]
[1723397340600,1.68498998,148.39,148.34,10.68]
[1723397340909,16.1783,148.41,148.34,10.68]
[1723397341110,1.68486652,148.4,148.35,0.12549]
[1723397341811,16.1783,148.41,148.36,10.68]
[1723397342396,1.68471988,148.4,148.36,10.68]
[1723397342598,16.1783,148.41,148.36,10.68]
[1723397343207,1.68478396,148.4,148.36,10.68]
[1723397344133,1.6848649,148.39,148.36,10.68]
[1723397344632,1.68492478,148.4,148.36,10.68]
[1723397344797,1.68486816,148.39,148.36,10.68]
[1723397345000,1.68486816,148.39,148.34,10.68]
[1723397345911,1.68486816,148.39,148.3,178.02130612]
[1723397346161,4.7178,148.38,148.31,10.68]
[1723397346339,1.68546318,148.37,148.3,171.00862347]
[1723397346503,10.68,148.38,148.31,10.68]
[1723397346827,10.68,148.38,148.3,171.00862347]
[1723397347029,10.68,148.38,148.31,10.68]
[1723397347530,15.3977,148.38,148.31,10.68]
[1723397347744,45.0,148.37,148.31,10.68]
[1723397350818,15.3476,148.36,148.31,10.68]
[1723397351034,15.3476,148.36,148.3,181.68862347]
[1723397351440,26.0276,148.36,148.3,171.00862347]
[1723397352220,55.68,148.35,148.3,171.00862347]
[1723397352422,10.80549,148.35,148.3,171.00862347]
[1723397352644,75.0,148.34,148.3,171.00862347]
[1723397353343,30.0,148.34,148.3,171.00862347]
[1723397353759,30.0,148.34,148.3,181.68862347]
[1723397354128,30.0,148.34,148.3,171.00862347]
[1723397354547,26.0276,148.36,148.3,171.00862347]
[1723397355971,15.3476,148.36,148.3,181.68862347]
[1723397358029,1.68560425,148.35,148.3,181.68862347]
[1723397358358,1.68559653,148.34,148.31,10.68]
[1723397359038,15.3476,148.36,148.31,10.68]
[1723397359241,15.3476,148.36,148.3,171.00862347]
[1723397359754,20.0659,148.36,148.3,171.00862347]
[1723397360053,26.0276,148.36,148.3,171.00862347]
[1723397360239,45.0,148.35,148.3,171.00862347]
[1723397360847,20.066,148.36,148.3,171.00862347]
[1723397361760,20.066,148.36,148.3,181.68862347]
[1723397362432,15.3476,148.36,148.31,10.68]
[1723397362636,1.68550525,148.35,148.32,10.68]
[1723397362952,1.68550525,148.35,148.31,10.68]
[1723397363161,15.3476,148.36,148.31,10.68]
[1723397364385,10.7918,148.39,148.34,10.68]
[1723397364663,6.40290372,148.38,148.32,10.68]
[1723397365551,4.7176,148.38,148.32,10.68]
[1723397366767,10.7918,148.39,148.33,10.68]
[1723397367146,1.68525842,148.38,148.33,10.68]
[1723397367369,1.68525842,148.38,148.34,10.68]
[1723397367577,20.0645,148.4,148.34,10.68]
[1723397367777,1.68517644,148.39,148.34,10.68]
[1723397367976,6.40247644,148.39,148.34,10.68]
[1723397368475,1.68517644,148.39,148.34,10.68]
[1723397368978,20.0646,148.4,148.34,10.68]
[1723397369555,1.68517573,148.39,148.34,10.68]
[1723397370160,20.0646,148.4,148.34,10.68]
[1723397370474,1.68514587,148.39,148.34,10.68]
[1723397372266,17.03263788,148.4,148.37,10.68]
[1723397373202,15.3476,148.4,148.37,10.68]
[1723397373364,10.3476,148.4,148.37,10.68]
[1723397373787,10.3476,148.4,148.36,10.68]
[1723397374767,11.3549,148.43,148.37,10.68]
[1723397376377,11.3549,148.43,148.38,10.68]
[1723397376900,4.7163,148.42,148.37,10.68]
[1723397377081,1.68485855,148.41,148.37,10.68]
[1723397377409,4.7163,148.42,148.37,10.68]
[1723397378995,6.40115684,148.42,148.37,10.68]
[1723397380212,4.7163,148.42,148.38,10.68]
[1723397381417,1.68485448,148.41,148.36,10.68]
[1723397382216,4.7163,148.42,148.34,0.12549]
[1723397382217,4.7163,148.42,148.37,10.68]
[1723397384531,15.7125,148.44,148.4,10.68]
[1723397384822,15.7125,148.44,148.41,10.68]
[1723397385023,4.716,148.43,148.35,16.6101]
[1723397385316,1.68470755,148.42,148.37,10.68]
[1723397385518,4.716,148.43,148.37,10.68]
[1723397385717,4.716,148.43,148.38,10.68]
[1723397386016,15.7125,148.44,148.39,10.68]
[1723397386206,20.4283,148.44,148.39,10.68]
[1723397386399,15.7125,148.44,148.39,10.68]
[1723397386705,15.7125,148.44,148.4,10.68]
[1723397389124,15.7125,148.44,148.36,0.25098]
[1723397389297,15.7125,148.44,148.36,10.68]
[1723397389298,4.7161,148.43,148.36,10.68]
[1723397389503,4.7161,148.43,148.37,10.68]